bitfinex/quotes_BTCUSD_20241101
["timestamp","ask_amount","ask_price","bid_price","bid_amount"]
[1730485419390,7.43989245,69389.0,69388.0,1.8381618]
[1730485419574,7.43989245,69389.0,69388.0,1.8093388]
[1730485420367,2.60085041,69389.0,69388.0,1.17509454]
[1730485420578,0.18657,69377.0,69368.0,0.00380682]
[1730485420792,0.33073,69367.0,69366.0,24.93291919]
[1730485421001,5.29964896,69367.0,69366.0,24.77598114]
[1730485421207,5.40787958,69367.0,69366.0,24.77598114]
[1730485421419,5.37139409,69367.0,69366.0,24.77598114]
[1730485421631,5.53933153,69367.0,69366.0,24.74714814]
[1730485421855,6.96395009,69367.0,69366.0,24.56641118]
[1730485422077,6.58783361,69367.0,69366.0,24.56641118]
[1730485422345,7.3361113,69367.0,69366.0,24.49427118]
[1730485422865,7.28004592,69367.0,69366.0,24.31318823]
[1730485423318,7.04868951,69367.0,69366.0,24.24574287]
[1730485423538,7.04868951,69367.0,69366.0,24.17829751]
[1730485423755,7.04868951,69367.0,69366.0,24.12063151]
[1730485423981,7.20008951,69367.0,69366.0,23.87719446]
[1730485424202,7.11704853,69367.0,69366.0,23.87719446]
[1730485424457,7.09404853,69367.0,69366.0,23.87719446]
[1730485424649,7.16517968,69367.0,69366.0,23.87719446]
[1730485424865,7.16517968,69367.0,69366.0,23.81952846]
[1730485424866,7.17917968,69367.0,69366.0,23.81952846]
[1730485425088,7.17917968,69367.0,69366.0,23.76186246]
[1730485425360,7.14760732,69367.0,69366.0,23.73302946]
[1730485425551,6.79596824,69367.0,69366.0,23.73302946]
[1730485425777,7.13043085,69367.0,69366.0,23.58886446]
[1730485425997,6.85852703,69367.0,69366.0,23.58886446]
[1730485426217,7.17016455,69367.0,69366.0,23.58886446]
[1730485426433,7.1694632,69367.0,69366.0,23.45601414]
[1730485426676,7.18703556,69367.0,69366.0,23.42718114]
[1730485426905,7.20103556,69367.0,69366.0,23.31184914]
[1730485427113,7.22296367,69367.0,69366.0,23.15491109]
[1730485427339,7.11590441,69367.0,69366.0,23.15491109]
[1730485427589,6.80164148,69367.0,69366.0,23.15491109]
[1730485427809,5.01981448,69367.0,69366.0,23.43521109]
[1730485428096,4.96206935,69367.0,69366.0,23.43521109]
[1730485428319,1.40906935,69367.0,69366.0,23.43521109]
[1730485428552,1.19118214,69367.0,69366.0,23.43521109]
[1730485428795,1.20518214,69367.0,69366.0,23.43521109]
[1730485429013,1.1017613,69367.0,69366.0,23.43521109]
[1730485429483,1.2157613,69367.0,69366.0,23.43521109]
[1730485429940,1.2017613,69367.0,69366.0,23.43521109]
[1730485430147,1.2157613,69367.0,69366.0,23.43521109]
[1730485430369,1.0783613,69367.0,69366.0,23.43521109]
[1730485430617,1.0643613,69367.0,69366.0,23.43521109]
[1730485430841,1.04363041,69367.0,69366.0,23.43521109]
[1730485431056,1.05763041,69367.0,69366.0,23.43521109]
[1730485431492,1.0971892,69367.0,69366.0,23.43521109]
[1730485432139,1.0971892,69367.0,69366.0,23.43603209]
[1730485432600,1.24228521,69367.0,69366.0,23.43603209]
[1730485433263,0.9318312,69367.0,69366.0,23.43603209]
[1730485433485,1.30027241,69367.0,69366.0,23.43603209]
[1730485433710,1.44372642,69367.0,69366.0,23.43603209]
[1730485433928,2.38627241,69367.0,69366.0,23.43603209]
[1730485434154,2.60593637,69367.0,69366.0,23.43603209]
[1730485434399,0.37673637,69367.0,69366.0,23.43603209]
[1730485434629,0.12774743,69370.0,69368.0,0.2653]
[1730485434854,0.144149,69373.0,69369.0,0.0803]
[1730485435079,0.02659012,69372.0,69369.0,0.0803]
[1730485435529,0.03672171,69375.0,69366.0,23.15573209]
[1730485435530,0.03672171,69375.0,69370.0,0.2795]
[1730485435847,0.144132,69381.0,69366.0,23.15573209]
[1730485435947,0.08516075,69371.0,69369.0,0.13436194]
[1730485436205,0.144132,69381.0,69369.0,0.13436194]
[1730485436206,0.0266105,69380.0,69369.0,0.16756194]
[1730485436439,0.014,69372.0,69370.0,0.0332]
[1730485436670,0.04357916,69371.0,69370.0,0.0332]
[1730485437129,0.05757916,69371.0,69370.0,0.0332]
[1730485437362,0.05757916,69371.0,69370.0,0.2322]
[1730485438060,0.02663443,69379.0,69370.0,0.0085]
[1730485438331,0.02663443,69379.0,69370.0,0.0075]
[1730485438563,0.06382382,69374.0,69370.0,0.0075]
[1730485438799,0.21553582,69382.0,69370.0,0.0095]
[1730485438800,0.013,69371.0,69370.0,0.0095]
[1730485439035,0.05552793,69371.0,69370.0,0.0418]
[1730485439262,0.18409956,69371.0,69370.0,0.0408]
[1730485439716,0.18409956,69371.0,69370.0,0.0418]
[1730485439717,0.28409956,69371.0,69370.0,0.0418]
[1730485439943,0.1,69371.0,69370.0,0.0418]
[1730485440185,0.1,69371.0,69370.0,0.0408]
[1730485440408,0.1,69371.0,69370.0,0.0418]
[1730485440609,0.244152,69371.0,69370.0,0.0418]
[1730485440815,0.244149,69373.0,69370.0,0.0408]
[1730485441028,0.144151,69372.0,69370.0,0.0418]
[1730485441446,0.101,69371.0,69370.0,0.0428]
[1730485441665,0.101,69371.0,69370.0,0.0438]
[1730485441877,0.1,69371.0,69370.0,0.0408]
[1730485442336,0.244152,69371.0,69370.0,0.0428]
[1730485442550,0.001,69372.0,69370.0,0.0428]
[1730485442749,0.244149,69373.0,69370.0,0.0428]
[1730485442750,0.244149,69373.0,69370.0,0.0418]
[1730485443011,0.1,69373.0,69370.0,0.0428]
[1730485443232,0.001,69371.0,69370.0,0.0428]
[1730485443494,0.101,69371.0,69370.0,0.0418]
[1730485443713,0.101,69371.0,69370.0,0.0428]
[1730485443951,0.101,69371.0,69370.0,0.0418]
[1730485444379,0.28825,69385.0,69370.0,0.0428]
[1730485444380,0.08496104,69378.0,69370.0,0.0428]
[1730485444587,0.21553582,69375.0,69370.0,0.0408]
[1730485444794,0.21553582,69374.0,69370.0,0.0418]
[1730485445020,0.001642,69371.0,69370.0,0.0428]
[1730485445227,0.001642,69371.0,69370.0,0.0408]
[1730485445452,0.245794,69371.0,69370.0,0.0408]
[1730485445654,0.245794,69371.0,69370.0,0.0418]
[1730485446121,0.14416,69367.0,69366.0,23.15577221]
[1730485446362,0.38261525,69367.0,69366.0,23.15577221]
[1730485446577,0.42677665,69367.0,69366.0,23.15577221]
[1730485448877,0.0441614,69367.0,69366.0,23.15677221]
[1730485449079,0.001642,69371.0,69366.0,23.15677221]
[1730485449080,0.001642,69371.0,69366.0,23.29622746]
[1730485449335,0.12774743,69388.0,69370.0,0.13436194]
[1730485449336,0.10609545,69388.0,69370.0,0.13436194]
[1730485449565,0.02421451,69389.0,69366.0,23.15777221]
[1730485449566,0.21553582,69375.0,69371.0,0.13845525]
[1730485449826,0.02421451,69389.0,69371.0,0.13845525]
[1730485450068,0.21553582,69380.0,69379.0,0.13436194]
[1730485450303,0.02421451,69389.0,69379.0,0.35366194]
[1730485450534,0.21553582,69383.0,69379.0,0.2193]
[1730485450751,0.02421451,69389.0,69379.0,0.2193]
[1730485451206,0.12421451,69389.0,69379.0,0.2193]
[1730485451697,0.12421451,69389.0,69379.0,0.2213]
[1730485452113,0.12421451,69389.0,69379.0,0.2203]
[1730485452530,0.12421451,69389.0,69379.0,0.2213]
[1730485452957,0.1,69382.0,69379.0,0.2213]
[1730485453185,0.1,69382.0,69379.0,0.2203]
[1730485453870,0.1,69382.0,69372.0,0.0333]
[1730485454112,0.44543977,69380.0,69379.0,0.001]
[1730485454342,0.58389502,69380.0,69379.0,0.001]
[1730485455062,0.43976002,69380.0,69372.0,0.001]
[1730485455284,0.1,69376.0,69372.0,0.001]
[1730485455523,0.288241,69387.0,69374.0,0.2233]
[1730485455524,0.04237828,69387.0,69374.0,0.2233]
[1730485455747,0.21553582,69386.0,69375.0,0.13845525]
[1730485455973,0.21553582,69386.0,69376.0,0.2254]
[1730485456223,0.21553582,69386.0,69377.0,0.13845525]
[1730485456903,0.1,69385.0,69376.0,0.2254]
[1730485457137,0.001642,69380.0,69379.0,0.001]
[1730485457586,0.001642,69380.0,69376.0,0.2254]
[1730485457800,0.001642,69380.0,69377.0,0.001]
[1730485458493,0.001642,69380.0,69379.0,0.001]
[1730485458788,0.001642,69380.0,69379.0,0.002]
[1730485459724,0.001642,69380.0,69379.0,0.001]
[1730485460135,0.001642,69380.0,69368.0,0.0333]
[1730485460384,0.001642,69380.0,69377.0,0.001]
[1730485460599,0.001642,69380.0,69379.0,0.001]
[1730485464342,0.001642,69380.0,69379.0,0.002]
[1730485465702,0.001642,69380.0,69379.0,0.33555525]
[1730485465908,0.21553582,69392.0,69379.0,0.13945525]
[1730485466104,0.21553582,69385.0,69379.0,0.13845525]
[1730485466299,0.21553582,69392.0,69379.0,0.13845525]
[1730485466598,0.21553582,69392.0,69379.0,0.14045525]
[1730485466948,0.21553582,69392.0,69380.0,0.1934]
[1730485467178,0.21553582,69385.0,69381.0,0.0316]
[1730485467388,0.1,69384.0,69379.0,0.002]
[1730485467635,0.04433144,69383.0,69379.0,0.002]
[1730485467829,0.04433144,69383.0,69379.0,0.001]
[1730485468464,0.04433144,69382.0,69379.0,0.001]
[1730485468696,0.04433144,69381.0,69379.0,0.001]
[1730485468911,0.04433144,69386.0,69379.0,0.001]
[1730485469584,0.04433144,69386.0,69380.0,0.001]
[1730485469801,0.04433144,69386.0,69381.0,0.001]
[1730485470257,0.04433144,69386.0,69375.0,0.000821]
[1730485470495,0.04433144,69386.0,69377.0,0.21553582]
[1730485470742,0.04433144,69386.0,69375.0,0.02589603]
[1730485470743,0.02255823,69396.0,69381.0,0.1953]
[1730485470967,0.21553582,69400.0,69383.0,0.0317]
[1730485471205,0.21553582,69400.0,69385.0,0.1953]
[1730485471424,0.21553582,69393.0,69386.0,0.14133735]
[1730485471641,0.21553582,69400.0,69386.0,0.14133735]
[1730485472266,0.1,69399.0,69386.0,0.14133735]
[1730485472473,0.21553582,69411.0,69388.0,0.25]
[1730485472703,0.21553582,69400.0,69390.0,0.023]
[1730485472929,0.21553582,69399.0,69391.0,0.13845525]
[1730485473162,0.21553582,69392.0,69391.0,0.13845525]
[1730485473380,0.20130477,69409.0,69391.0,0.13845525]
[1730485473590,0.21553582,69404.0,69391.0,0.13845525]
[1730485473812,0.1,69403.0,69391.0,0.13845525]
[1730485474067,0.1,69403.0,69391.0,0.13945525]
[1730485474310,0.1,69410.0,69392.0,0.21553582]
[1730485474541,0.1,69410.0,69393.0,0.13845525]
[1730485474749,0.1,69410.0,69394.0,0.18338174]
[1730485474964,0.1,69410.0,69395.0,0.13845525]
[1730485475168,0.1,69410.0,69395.0,0.19596708]
[1730485475399,0.21553582,69404.0,69395.0,0.13845525]
[1730485475611,0.1,69403.0,69395.0,0.13845525]
[1730485476015,0.1,69403.0,69394.0,0.1805]
[1730485476427,0.1,69403.0,69395.0,0.35499107]
[1730485476645,0.1,69403.0,69395.0,0.13845525]
[1730485476869,0.1,69403.0,69395.0,0.13945525]
[1730485477076,0.1,69410.0,69395.0,0.14045525]
[1730485477281,0.1,69410.0,69395.0,0.13845525]
[1730485477692,0.1,69410.0,69395.0,0.13945525]
[1730485478134,0.1,69410.0,69394.0,0.1805]
[1730485478135,0.21553582,69404.0,69394.0,0.1805]
[1730485478348,0.1,69406.0,69395.0,0.21653582]
[1730485479231,0.1,69410.0,69396.0,0.13845525]
[1730485480327,0.04247822,69420.0,69403.0,0.0317]
[1730485480573,0.21553582,69416.0,69404.0,0.14133657]
[1730485480809,0.21553582,69416.0,69405.0,0.03071834]
[1730485481015,0.21553582,69416.0,69406.0,0.13845525]
[1730485481699,0.21553582,69426.0,69407.0,0.21553582]
[1730485481938,0.288028,69438.0,69407.0,0.21553582]
[1730485481939,0.21553582,69435.0,69418.0,0.0317]
[1730485482165,0.21553582,69435.0,69419.0,0.13845525]
[1730485482166,0.21553582,69427.0,69419.0,0.13845525]
[1730485482407,0.21553582,69435.0,69419.0,0.13845525]
[1730485483056,0.21553582,69435.0,69420.0,0.21553582]
[1730485483274,0.1,69434.0,69421.0,0.13845525]
[1730485484625,0.001632,69441.0,69421.0,0.17722436]
[1730485484871,0.1,69435.0,69421.0,0.17722436]
[1730485485100,0.1,69428.0,69421.0,0.13845525]
[1730485485341,0.1,69428.0,69411.0,0.0317]
[1730485485559,0.1,69428.0,69421.0,0.001]
[1730485485776,0.1,69428.0,69412.0,0.13845525]
[1730485485987,0.1,69428.0,69414.0,0.21553582]
[1730485486201,0.1,69435.0,69421.0,0.001]
[1730485486425,0.1,69428.0,69415.0,0.13845525]
[1730485486660,0.1,69435.0,69421.0,0.002]
[1730485486919,0.1,69435.0,69421.0,0.001]
[1730485487123,0.1,69435.0,69415.0,0.13845525]
[1730485487350,0.1,69435.0,69421.0,0.21553582]
[1730485488040,0.31553582,69435.0,69421.0,0.35399107]
[1730485488310,0.1,69435.0,69421.0,0.35399107]
[1730485488532,0.1,69435.0,69421.0,0.35499107]
[1730485489156,0.1,69435.0,69421.0,0.39049018]
[1730485489770,0.1,69435.0,69422.0,0.13845525]
[1730485489977,0.001632,69437.0,69422.0,0.13845525]
[1730485491801,0.001632,69437.0,69423.0,0.1855]
[1730485492016,0.001632,69437.0,69425.0,0.0317]
[1730485492218,0.001632,69437.0,69426.0,0.13845525]
[1730485493655,0.001642,69435.0,69426.0,0.13845525]
[1730485494749,0.001642,69435.0,69426.0,0.13945525]
[1730485494750,0.101642,69435.0,69426.0,0.13945525]
[1730485495178,0.101642,69435.0,69431.0,0.21553582]
[1730485495402,0.101642,69435.0,69426.0,0.13945525]
[1730485495403,0.101642,69435.0,69427.0,0.00288044]
[1730485495602,0.101642,69435.0,69428.0,0.13845525]
[1730485496053,0.001642,69435.0,69428.0,0.13845525]
[1730485496459,0.001642,69435.0,69431.0,0.001]
[1730485496696,0.001642,69435.0,69434.0,0.0317]
[1730485497045,0.001642,69435.0,69434.0,0.38865525]
[1730485497242,0.001632,69437.0,69434.0,0.38865525]
[1730485497452,0.001632,69441.0,69435.0,0.30835393]
[1730485497672,0.001632,69441.0,69437.0,0.023]
[1730485497885,0.001632,69441.0,69439.0,0.023]
[1730485498101,0.001632,69441.0,69434.0,0.2272]
[1730485498102,0.001632,69441.0,69440.0,0.13845525]
[1730485503021,0.001632,69441.0,69440.0,0.14133494]
[1730485503423,0.001632,69441.0,69440.0,0.16145525]
[1730485503638,0.001632,69441.0,69440.0,0.21355596]
[1730485504291,0.001632,69441.0,69440.0,0.13845525]
[1730485504699,0.001632,69441.0,69425.0,0.0317]
[1730485504850,0.001632,69441.0,69429.0,0.13845525]
[1730485506072,0.001632,69441.0,69430.0,0.023]
[1730485506266,0.005632,69441.0,69431.0,0.13845525]
[1730485506904,0.001632,69441.0,69431.0,0.13845525]
[1730485507176,0.005632,69441.0,69431.0,0.13845525]
[1730485507726,0.001632,69441.0,69431.0,0.13845525]
[1730485508136,0.005632,69441.0,69431.0,0.14045525]
[1730485508357,0.0905565,69442.0,69431.0,0.14045525]
[1730485508774,0.0783,69444.0,69431.0,0.14045525]
[1730485509197,0.0783,69444.0,69431.0,0.13945525]
[1730485509609,0.004,69442.0,69431.0,0.14045525]
[1730485510033,0.0783,69444.0,69431.0,0.13945525]
[1730485510236,0.21553582,69443.0,69431.0,0.13945525]
[1730485510454,0.1,69432.0,69431.0,0.001]
[1730485510654,0.1,69432.0,69431.0,0.002]
[1730485510655,0.181,69432.0,69431.0,0.002]
[1730485511103,0.181,69432.0,69428.0,0.000821]
[1730485511331,0.181,69432.0,69431.0,0.001]
[1730485511776,0.181,69432.0,69428.0,0.000821]
[1730485511996,0.0779,69440.0,69429.0,0.13845525]
[1730485512257,0.44952388,69433.0,69431.0,0.001]
[1730485512480,0.23398806,69433.0,69431.0,0.001]
[1730485512931,0.23398806,69433.0,69428.0,0.000821]
[1730485513335,0.23398806,69433.0,69429.0,0.001]
[1730485513544,0.1,69431.0,69429.0,0.001]
[1730485513746,0.1,69431.0,69428.0,0.000821]
[1730485514162,0.1,69431.0,69428.0,0.001821]
[1730485514362,0.1,69431.0,69428.0,0.002821]
[1730485514586,0.04451512,69430.0,69428.0,0.001821]
[1730485515027,0.114,69431.0,69428.0,0.001821]
[1730485515515,0.04453338,69430.0,69428.0,0.000821]
[1730485515712,0.04453338,69430.0,69428.0,0.001821]
[1730485516359,0.04453338,69430.0,69428.0,0.000821]
[1730485516568,0.13822319,69429.0,69428.0,0.000821]
[1730485516779,0.13822319,69429.0,69428.0,0.001821]
[1730485516780,0.32678857,69429.0,69428.0,0.001821]
[1730485516977,0.32678857,69429.0,69428.0,0.002821]
[1730485516978,0.28856538,69429.0,69428.0,0.002821]
[1730485517196,0.50495344,69429.0,69428.0,0.002821]
[1730485517381,0.745298,69429.0,69428.0,0.002821]
[1730485517577,0.64229988,69429.0,69421.0,0.000821]
[1730485517777,0.67864631,69422.0,69421.0,0.000821]
[1730485518023,0.72317969,69422.0,69421.0,0.000821]
[1730485518741,0.68056744,69422.0,69421.0,0.000821]
[1730485518966,0.68056744,69422.0,69421.0,0.001821]
[1730485519362,0.81902269,69422.0,69421.0,0.001821]
[1730485519586,0.83302269,69422.0,69421.0,0.001821]
[1730485520029,0.83302269,69422.0,69421.0,0.000821]
[1730485520407,0.84702269,69422.0,69421.0,0.000821]
[1730485520649,0.93191085,69422.0,69421.0,0.000821]
[1730485521062,0.84702269,69422.0,69421.0,0.000821]
[1730485521263,0.91096151,69422.0,69421.0,0.000821]
[1730485521472,0.84702269,69422.0,69421.0,0.000821]
[1730485523194,0.93191085,69422.0,69421.0,0.000821]
[1730485523621,0.95313289,69422.0,69421.0,0.000821]
[1730485524184,0.84702269,69422.0,69421.0,0.000821]
[1730485524806,0.95369586,69422.0,69421.0,0.000821]
[1730485525227,0.84702269,69422.0,69421.0,0.000821]
[1730485525438,0.95369586,69422.0,69421.0,0.000821]
[1730485526200,0.144074,69409.0,69406.0,0.21553582]
[1730485526452,0.1,69421.0,69406.0,0.21553582]
[1730485526453,0.51205312,69407.0,69406.0,0.21553582]
[1730485526682,0.1,69402.0,69399.0,0.21553582]
[1730485526893,0.23398806,69400.0,69399.0,0.21553582]
[1730485527317,0.1,69399.0,69385.0,0.21553582]
[1730485527551,0.23398806,69393.0,69392.0,0.21553582]
[1730485527785,0.1,69392.0,69385.0,0.21553582]
[1730485528259,0.1,69387.0,69371.0,0.21553582]
[1730485528470,0.1,69383.0,69382.0,0.21553582]
[1730485528693,0.1,69383.0,69371.0,0.21553582]
[1730485528920,0.1,69383.0,69369.0,0.1907]
[1730485529373,0.1,69383.0,69367.0,0.21716582]
[1730485531111,0.114,69383.0,69367.0,0.21716582]
[1730485531361,0.128,69383.0,69367.0,0.21716582]
[1730485531786,0.114,69383.0,69367.0,0.21716582]
[1730485532018,0.21553582,69382.0,69367.0,0.21716582]
[1730485532242,0.1,69382.0,69367.0,0.21716582]
[1730485532474,0.1,69382.0,69374.0,0.21553582]
[1730485533132,0.114,69383.0,69374.0,0.21553582]
[1730485533562,0.128,69383.0,69368.0,0.0028829]
[1730485533765,0.114,69383.0,69367.0,0.21716582]
[1730485534025,0.1,69383.0,69367.0,0.21716582]
[1730485534260,0.014,69382.0,69367.0,0.21716582]
[1730485534921,0.1,69383.0,69367.0,0.21716582]
[1730485535151,0.114,69383.0,69367.0,0.21716582]
[1730485535580,0.1,69383.0,69367.0,0.21716582]
[1730485535996,0.014,69382.0,69367.0,0.21716582]
[1730485538165,0.028,69382.0,69367.0,0.21716582]
[1730485538929,0.027999,69382.0,69367.0,0.21716582]
[1730485539343,0.348728,69382.0,69367.0,0.21716582]
[1730485540775,0.89671907,69382.0,69367.0,0.21716582]
[1730485540997,0.57527744,69382.0,69367.0,0.21716582]
[1730485541218,0.46003006,69376.0,69367.0,0.21716582]
[1730485541441,0.59848531,69376.0,69367.0,0.21716582]
[1730485542490,0.31588806,69376.0,69367.0,0.21716582]
[1730485543570,0.32988806,69376.0,69367.0,0.21716582]
[1730485544067,0.31588806,69376.0,69367.0,0.21716582]
[1730485544308,0.32988806,69376.0,69367.0,0.21716582]
[1730485544511,0.34388806,69376.0,69367.0,0.21716582]
[1730485547386,0.028,69376.0,69375.0,0.13927625]
[1730485547594,0.028,69376.0,69375.0,0.15320387]
[1730485547844,0.028,69376.0,69375.0,0.20790387]
[1730485548471,0.014,69376.0,69375.0,0.19397625]
[1730485549138,0.21553582,69392.0,69376.0,0.023]
[1730485549359,0.21553582,69392.0,69378.0,0.023]
[1730485549565,0.21553582,69392.0,69379.0,0.14133733]
[1730485549998,0.13398806,69400.0,69379.0,0.14133733]
[1730485550219,0.13398806,69400.0,69379.0,0.19699125]
[1730485550473,0.014,69392.0,69381.0,0.21553582]
[1730485550675,0.014,69392.0,69382.0,0.13845525]
[1730485551114,0.028,69392.0,69382.0,0.13845525]
[1730485551332,0.014,69392.0,69382.0,0.13845525]
[1730485552155,0.1,69398.0,69382.0,0.13845525]
[1730485552567,0.014,69392.0,69383.0,0.21553582]
[1730485552780,0.1,69398.0,69384.0,0.13845525]
[1730485553217,0.028,69392.0,69384.0,0.13845525]
[1730485553436,0.014,69392.0,69384.0,0.13845525]
[1730485554107,0.114,69398.0,69384.0,0.13845525]
[1730485554546,0.13398806,69390.0,69375.0,0.000821]
[1730485554757,0.0798,69388.0,69381.0,0.21553582]
[1730485554978,0.1,69384.0,69376.0,0.13845525]
[1730485556473,0.144122,69386.0,69375.0,0.000821]
[1730485556696,0.1,69379.0,69375.0,0.000821]
[1730485558008,0.114,69384.0,69375.0,0.000821]
[1730485558227,0.04438835,69383.0,69375.0,0.000821]
[1730485559701,0.05838835,69383.0,69375.0,0.000821]
[1730485559911,0.014,69379.0,69375.0,0.000821]
[1730485560570,0.014,69383.0,69377.0,0.21553582]
[1730485560779,0.014,69383.0,69378.0,0.13845525]
[1730485561189,0.20918806,69395.0,69379.0,0.00288224]
[1730485561417,0.21553582,69392.0,69380.0,0.13845525]
[1730485561908,0.20918806,69395.0,69380.0,0.13845525]
[1730485562135,0.14445104,69394.0,69381.0,0.21553582]
[1730485562347,0.1,69394.0,69382.0,0.13845525]
[1730485562555,0.04445094,69393.0,69382.0,0.13845525]
[1730485562777,0.014,69392.0,69382.0,0.13845525]
[1730485563231,0.001644,69398.0,69382.0,0.13845525]
[1730485563433,0.028,69394.0,69382.0,0.13845525]
[1730485563636,0.04445277,69393.0,69382.0,0.13845525]
[1730485563854,0.001644,69398.0,69382.0,0.13845525]
[1730485564056,0.014,69392.0,69382.0,0.13845525]
[1730485564287,0.028,69392.0,69388.0,0.21553582]
[1730485564584,0.028,69392.0,69389.0,0.14133711]
[1730485565011,0.028,69392.0,69389.0,0.13845525]
[1730485565238,0.014,69392.0,69389.0,0.13845525]
[1730485565717,0.014,69394.0,69389.0,0.13845525]
[1730485565934,0.014,69393.0,69389.0,0.13845525]
[1730485566149,0.014,69392.0,69389.0,0.13845525]
[1730485566805,0.028,69392.0,69389.0,0.13845525]
[1730485567040,0.014,69392.0,69389.0,0.13845525]
[1730485568828,0.028,69392.0,69389.0,0.13845525]
[1730485571437,0.1038,69392.0,69389.0,0.13845525]
[1730485571654,0.1,69391.0,69389.0,0.13845525]
[1730485572737,0.0758,69392.0,69389.0,0.13845525]
[1730485572944,0.028,69391.0,69389.0,0.13845525]
[1730485573819,0.014,69391.0,69389.0,0.13845525]
[1730485574456,0.084444,69398.0,69389.0,0.13845525]
[1730485574664,0.1,69397.0,69389.0,0.13845525]
[1730485574846,0.014,69392.0,69389.0,0.13845525]
[1730485575405,0.014,69391.0,69389.0,0.13845525]
[1730485575608,0.1,69397.0,69389.0,0.13845525]
[1730485575813,0.14269225,69397.0,69389.0,0.13845525]
[1730485576020,0.014,69392.0,69389.0,0.13845525]
[1730485576222,0.1,69397.0,69389.0,0.13845525]
[1730485576434,0.014,69392.0,69389.0,0.13845525]
[1730485577671,0.014,69391.0,69389.0,0.13845525]
[1730485577879,0.014,69392.0,69390.0,0.01672745]
[1730485578088,0.1,69397.0,69391.0,0.13845525]
[1730485578312,0.1,69397.0,69392.0,0.00288167]
[1730485578313,0.014,69397.0,69392.0,0.00288167]
[1730485578555,0.014,69397.0,69393.0,0.13845525]
[1730485578828,0.001644,69398.0,69393.0,0.13845525]
[1730485579035,0.001644,69398.0,69395.0,0.023]
[1730485579241,0.04269225,69411.0,69397.0,0.2048]
[1730485579478,0.04269225,69411.0,69399.0,0.023]
[1730485579681,0.25823209,69412.0,69401.0,0.023]
[1730485579904,0.21553582,69412.0,69402.0,0.13845525]
[1730485580117,0.04269627,69412.0,69403.0,0.01614553]
[1730485580313,0.04269627,69412.0,69404.0,0.13845525]
[1730485580533,0.04269627,69413.0,69404.0,0.13845525]
[1730485580763,0.1,69415.0,69404.0,0.13845525]
[1730485580967,0.08723582,69414.0,69404.0,0.13845525]
[1730485581225,0.04453955,69413.0,69404.0,0.15621533]
[1730485581437,0.014,69411.0,69404.0,0.15621533]
[1730485581661,0.014,69411.0,69404.0,0.13845525]
[1730485581873,0.1,69414.0,69404.0,0.13845525]
[1730485582094,0.04455143,69413.0,69404.0,0.13845525]
[1730485582334,0.128,69414.0,69404.0,0.13845525]
[1730485582575,0.04456929,69413.0,69404.0,0.13845525]
[1730485582805,0.014,69414.0,69404.0,0.13845525]
[1730485583010,0.014,69411.0,69404.0,0.13845525]
[1730485583888,0.028,69411.0,69405.0,0.21553582]
[1730485584088,0.014,69411.0,69406.0,0.16433638]
[1730485584300,0.014,69411.0,69406.0,0.16145525]
[1730485585189,0.21717782,69421.0,69406.0,0.16145525]
[1730485585190,0.1825,69409.0,69406.0,0.13945525]
[1730485585423,0.1825,69409.0,69406.0,0.003]
[1730485585424,0.23398806,69407.0,69406.0,0.003]
[1730485585647,0.42258735,69407.0,69406.0,0.003]
[1730485585868,0.42258735,69407.0,69406.0,0.002]
[1730485586515,0.4866021,69407.0,69406.0,0.002]
[1730485586725,0.1,69406.0,69391.0,0.21553582]
[1730485586943,0.37808106,69400.0,69399.0,0.21553582]
[1730485587159,0.1,69399.0,69391.0,0.35399107]
[1730485588218,0.114,69399.0,69391.0,0.35399107]
[1730485588415,0.0817,69397.0,69384.0,0.21553582]
[1730485588646,0.1,69395.0,69385.0,0.13845525]
[1730485588853,0.1,69392.0,69374.0,0.21553582]
[1730485589100,0.1,69387.0,69382.0,0.21553582]
[1730485589535,0.1,69387.0,69381.0,0.13845525]
[1730485590620,0.1,69387.0,69381.0,0.14145525]
[1730485591049,0.04264751,69386.0,69381.0,0.14145525]
[1730485591264,0.04264751,69386.0,69381.0,0.14345525]
[1730485591498,0.04264751,69385.0,69381.0,0.14427725]
[1730485591959,0.04264751,69385.0,69381.0,0.14227725]
[1730485592186,0.04264751,69385.0,69381.0,0.14427725]
[1730485592854,0.04264751,69385.0,69381.0,0.14127725]
[1730485593115,0.04264751,69384.0,69381.0,0.14127725]
[1730485593320,0.04264751,69382.0,69381.0,0.14427725]
[1730485593525,0.04276247,69382.0,69381.0,0.13927725]
[1730485593979,0.1,69383.0,69381.0,0.13927725]
[1730485593980,0.1,69383.0,69381.0,0.15616958]
[1730485594203,0.028,69385.0,69383.0,0.023]
[1730485594409,0.014,69385.0,69384.0,0.16145525]
[1730485594827,0.001644,69392.0,69385.0,0.023]
[1730485595033,0.001644,69392.0,69386.0,0.13845525]
[1730485595248,0.25994229,69392.0,69386.0,0.13845525]
[1730485595495,0.04276247,69391.0,69386.0,0.13845525]
[1730485595691,0.04276247,69390.0,69386.0,0.13845525]
[1730485595912,0.04276247,69390.0,69381.0,0.000822]
[1730485595913,0.1,69386.0,69381.0,0.000822]
[1730485596126,0.04277082,69382.0,69381.0,0.000822]
[1730485596336,0.27675888,69382.0,69381.0,0.000822]
[1730485596821,0.14277082,69382.0,69381.0,0.000822]
[1730485597513,0.05677082,69382.0,69381.0,0.000822]
[1730485597741,0.07077082,69382.0,69381.0,0.000822]
[1730485597990,0.028,69382.0,69381.0,0.13927725]
[1730485598826,0.028,69382.0,69381.0,0.15328717]
[1730485599235,0.028,69382.0,69381.0,0.13927725]
[1730485599885,0.014,69382.0,69381.0,0.13927725]
[1730485600305,0.028,69382.0,69381.0,0.13927725]
[1730485600976,0.04277082,69389.0,69381.0,0.13927725]
[1730485601193,0.04277082,69389.0,69382.0,0.13845525]
[1730485601399,0.04273893,69389.0,69382.0,0.13845525]
[1730485601609,0.1641084,69391.0,69382.0,0.13845525]
[1730485601610,0.04273893,69388.0,69383.0,0.21553582]
[1730485601827,0.04273893,69388.0,69384.0,0.17401876]
[1730485602029,0.1,69389.0,69384.0,0.13845525]